{"text_format":"1","workbook":"xlsx","n_sheets":2,"sheets":["prof","توزيع الحراس "],"not_rendered":{"charts":0,"images":0,"macros":1,"external_links":1,"defined_names":19,"comments":0,"pivot_tables":0},"unopened":[],"bounds":{"document_bytes":16777216,"sheet_cells":100000,"rows_first":2000,"rows_last":500,"rows_between":2000,"halvings":0,"cell_chars":16384,"cell_head_chars":4096},"cells_cut":0,"cells_raw":0,"read":"whole","date_system":"1900"}

{"sheet":"prof","index":0,"n_rows":75,"n_cols":15,"rows_kept":75,"cut":false,"hidden":false,"merged":[]}
["الرقم الترتيبي","الرقم","اللقب والاسم","الرتبة","مواد  التدريس","مادة التدريس","المؤسسة","المقاطعة","العنوان","بلدية الاقامة","نوع المركز","اسم مركز التصحيح","مركز اجراء بكالوريا","مركز اجراء ش ت م","المهمة"]
[{"$f":"IF(C2=\"\",\"\",ROW(1:1))","v":1},null,"الأستاذ الحارس 1","مادة الرياضيات","علوم اسلامية",null,"ثانوية الوادي - الوادي",null,null,null,"مركز اجراء امتحان ش البكالوريا","","ثانوية الشهيد بن حمده علي  - النخلة","",""]
[{"$f":"IF(C3=\"\",\"\",ROW(2:2))","v":2},null,"الأستاذ الحارس 2","مادة الرياضيات","اجتماعيات",null,"ثانوية الوادي - الوادي",null,null,null,"مركز اجراء امتحان ش البكالوريا","","ثانوية الشهيد بن حمده علي  - النخلة","",""]
[{"$f":"IF(C4=\"\",\"\",ROW(3:3))","v":3},null,"الأستاذ الحارس 3","مادة الرياضيات","فرنسيــة",null,"ثانوية الوادي - الوادي",null,null,null,"مركز اجراء امتحان ش البكالوريا","","ثانوية الشهيد بن حمده علي  - النخلة","",""]
[{"$f":"IF(C5=\"\",\"\",ROW(4:4))","v":4},null,"الأستاذ الحارس 4","مادة الرياضيات","علوم طبيعية",null,"ثانوية الوادي - الوادي",null,null,null,"مركز اجراء امتحان ش البكالوريا","","ثانوية الشهيد بن حمده علي  - النخلة","",""]
[{"$f":"IF(C6=\"\",\"\",ROW(5:5))","v":5},null,"الأستاذ الحارس 5","مادة الرياضيات","انجليزية",null,"ثانوية الوادي - الوادي",null,null,null,"مركز اجراء امتحان ش البكالوريا","","ثانوية الشهيد بن حمده علي  - النخلة","",""]
[{"$f":"IF(C7=\"\",\"\",ROW(6:6))","v":6},null,"الأستاذ الحارس 6","العلوم الفيزيائية","عربية",null,"ثانوية الوادي - الوادي",null,null,null,"مركز اجراء امتحان ش البكالوريا","","ثانوية الشهيد بن حمده علي  - النخلة","",""]
[{"$f":"IF(C8=\"\",\"\",ROW(7:7))","v":7},null,"الأستاذ الحارس 7","العلوم الفيزيائية","فيزياء",null,"ثانوية الوادي - الوادي",null,null,null,"مركز اجراء امتحان ش البكالوريا","","ثانوية الشهيد بن حمده علي  - النخلة","",""]
[{"$f":"IF(C9=\"\",\"\",ROW(8:8))","v":8},null,"الأستاذ الحارس 8","العلوم الفيزيائية","فلسفة",null,"ثانوية الوادي - الوادي",null,null,null,"مركز اجراء امتحان ش البكالوريا","","ثانوية الشهيد بن حمده علي  - النخلة","",""]
[{"$f":"IF(C10=\"\",\"\",ROW(9:9))","v":9},null,"الأستاذ الحارس 9","العلوم الفيزيائية","رياضيات",null,"ثانوية الوادي - الوادي",null,null,null,"مركز اجراء امتحان ش البكالوريا","","ثانوية الشهيد بن حمده علي  - النخلة","",""]
[{"$f":"IF(C11=\"\",\"\",ROW(10:10))","v":10},null,"الأستاذ الحارس 10","العلوم الفيزيائية","كيمياء",null,"ثانوية الوادي - الوادي",null,null,null,"مركز اجراء امتحان ش البكالوريا","","ثانوية الشهيد بن حمده علي  - النخلة","",""]
[{"$f":"IF(C12=\"\",\"\",ROW(11:11))","v":11},null,"الأستاذ الحارس 11","علوم الطبيعية","إقتصاد",null,"ثانوية الوادي - الوادي",null,null,null,"مركز اجراء امتحان ش البكالوريا","","ثانوية الشهيد بن حمده علي  - النخلة","",""]
[{"$f":"IF(C13=\"\",\"\",ROW(12:12))","v":12},null,"الأستاذ الحارس 12","علوم الطبيعية","تسيير م . م",null,"ثانوية الوادي - الوادي",null,null,null,"مركز اجراء امتحان ش البكالوريا","","ثانوية الشهيد بن حمده علي  - النخلة","",""]
[{"$f":"IF(C14=\"\",\"\",ROW(13:13))","v":13},null,"الأستاذ الحارس 13","علوم الطبيعية","معلوماتية",null,"ثانوية الوادي - الوادي",null,null,null,"مركز اجراء امتحان ش البكالوريا","","ثانوية الشهيد بن حمده علي  - النخلة","",""]
[{"$f":"IF(C15=\"\",\"\",ROW(14:14))","v":14},null,"الأستاذ الحارس 14","علوم الطبيعية","تكنولوجيا",null,"ثانوية الوادي - الوادي",null,null,null,"مركز اجراء امتحان ش البكالوريا","","ثانوية الشهيد بن حمده علي  - النخلة","",""]
[{"$f":"IF(C16=\"\",\"\",ROW(15:15))","v":15},null,"الأستاذ الحارس 15","علوم الطبيعية","قانون",null,"ثانوية الوادي - الوادي",null,null,null,"مركز اجراء امتحان ش البكالوريا","","ثانوية الشهيد بن حمده علي  - النخلة","",""]
[{"$f":"IF(C17=\"\",\"\",ROW(16:16))","v":16},null,"الأستاذ الحارس 16","الأدب العربي",null,null,"ثانوية الوادي - الوادي",null,null,null,"مركز اجراء امتحان ش البكالوريا","","ثانوية الشهيد بن حمده علي  - النخلة","",""]
[{"$f":"IF(C18=\"\",\"\",ROW(17:17))","v":17},null,"الأستاذ الحارس 17","الأدب العربي",null,null,"ثانوية الوادي - الوادي",null,null,null,"مركز اجراء امتحان ش البكالوريا","","ثانوية الشهيد بن حمده علي  - النخلة","",""]
[{"$f":"IF(C19=\"\",\"\",ROW(18:18))","v":18},null,"الأستاذ الحارس 18","الأدب العربي",null,null,"ثانوية الوادي - الوادي",null,null,null,"مركز اجراء امتحان ش البكالوريا","","ثانوية الشهيد بن حمده علي  - النخلة","",""]
[{"$f":"IF(C20=\"\",\"\",ROW(19:19))","v":19},null,"الأستاذ الحارس 19","الأدب العربي",null,null,"ثانوية الوادي - الوادي",null,null,null,"مركز اجراء امتحان ش البكالوريا","","ثانوية الشهيد بن حمده علي  - النخلة","",""]
[{"$f":"IF(C21=\"\",\"\",ROW(20:20))","v":20},null,"الأستاذ الحارس 20","اللغة الفرنسية",null,null,"ثانوية الوادي - الوادي",null,null,null,"مركز اجراء امتحان ش البكالوريا","","ثانوية الشهيد بن حمده علي  - النخلة","",""]
[{"$f":"IF(C22=\"\",\"\",ROW(21:21))","v":21},null,"الأستاذ الحارس 21","اللغة الفرنسية",null,null,"ثانوية الوادي - الوادي",null,null,null,"مركز اجراء امتحان ش البكالوريا","","ثانوية الشهيد بن حمده علي  - النخلة","",""]
[{"$f":"IF(C23=\"\",\"\",ROW(22:22))","v":22},null,"الأستاذ الحارس 22","اللغة الفرنسية",null,null,"ثانوية الوادي - الوادي",null,null,null,"مركز اجراء امتحان ش البكالوريا","","ثانوية الشهيد بن حمده علي  - النخلة","",""]
[{"$f":"IF(C24=\"\",\"\",ROW(23:23))","v":23},null,"الأستاذ الحارس 23","اللغة الفرنسية",null,null,"ثانوية الوادي - الوادي",null,null,null,"مركز اجراء امتحان ش البكالوريا","","ثانوية الشهيد بن حمده علي  - النخلة","",""]
[{"$f":"IF(C25=\"\",\"\",ROW(24:24))","v":24},null,"الأستاذ الحارس 24","التربية البدنية",null,null,"ثانوية الوادي - الوادي",null,null,null,"مركز اجراء امتحان ش البكالوريا","","ثانوية الشهيد بن حمده علي  - النخلة","",""]
[{"$f":"IF(C26=\"\",\"\",ROW(25:25))","v":25},null,"الأستاذ الحارس 25","اللغة الإنجليزية",null,null,"ثانوية الوادي - الوادي",null,null,null,"مركز اجراء امتحان ش البكالوريا","","ثانوية الشهيد بن حمده علي  - النخلة","",""]
[{"$f":"IF(C27=\"\",\"\",ROW(26:26))","v":26},null,"الأستاذ الحارس 26","اللغة الإنجليزية",null,null,"ثانوية الوادي - الوادي",null,null,null,"مركز اجراء امتحان ش البكالوريا","","ثانوية الشهيد بن حمده علي  - النخلة","",""]
[{"$f":"IF(C28=\"\",\"\",ROW(27:27))","v":27},null,"الأستاذ الحارس 27","اللغة الإنجليزية",null,null,"ثانوية الوادي - الوادي",null,null,null,"مركز اجراء امتحان ش البكالوريا","","ثانوية الشهيد بن حمده علي  - النخلة","",""]
[{"$f":"IF(C29=\"\",\"\",ROW(28:28))","v":28},null,"الأستاذ الحارس 28","التاريخ والجغرافيا",null,null,"ثانوية الوادي - الوادي",null,null,null,"مركز اجراء امتحان ش البكالوريا","","ثانوية الشهيد بن حمده علي  - النخلة","",""]
[{"$f":"IF(C30=\"\",\"\",ROW(29:29))","v":29},null,"الأستاذ الحارس 29","التاريخ والجغرافيا",null,null,"ثانوية الوادي - الوادي",null,null,null,"مركز اجراء امتحان ش البكالوريا","","ثانوية الشهيد بن حمده علي  - النخلة","",""]
[{"$f":"IF(C31=\"\",\"\",ROW(30:30))","v":30},null,"الأستاذ الحارس 30","التاريخ والجغرافيا",null,null,"ثانوية الوادي - الوادي",null,null,null,"مركز اجراء امتحان ش البكالوريا","","ثانوية الشهيد بن حمده علي  - النخلة","",""]
[{"$f":"IF(C32=\"\",\"\",ROW(31:31))","v":31},null,"الأستاذ الحارس 31","التاريخ والجغرافيا",null,null,"ثانوية الوادي - الوادي",null,null,null,"مركز اجراء امتحان ش البكالوريا","","ثانوية الشهيد بن حمده علي  - النخلة","",""]
[{"$f":"IF(C33=\"\",\"\",ROW(32:32))","v":32},null,"الأستاذ الحارس 32","علوم إسلامية",null,null,"ثانوية الوادي - الوادي",null,null,null,"مركز اجراء امتحان ش البكالوريا","","ثانوية الشهيد بن حمده علي  - النخلة","",""]
[{"$f":"IF(C34=\"\",\"\",ROW(33:33))","v":33},null,"الأستاذ الحارس 33","علوم الطبيعية",null,null,"ثانوية الوادي - الوادي",null,null,null,"مركز اجراء امتحان ش البكالوريا","","ثانوية الشهيد بن حمده علي  - النخلة","",""]
[{"$f":"IF(C35=\"\",\"\",ROW(34:34))","v":34},null,"الأستاذ الحارس 34","علوم إسلامية",null,null,"ثانوية الوادي - الوادي",null,null,null,"مركز اجراء امتحان ش البكالوريا","","ثانوية الشهيد بن حمده علي  - النخلة","",""]
[{"$f":"IF(C36=\"\",\"\",ROW(35:35))","v":35},null,"الأستاذ الحارس 35","الفلسفة",null,null,"ثانوية الوادي - الوادي",null,null,null,"مركز اجراء امتحان ش البكالوريا","","ثانوية الشهيد بن حمده علي  - النخلة","",""]
[{"$f":"IF(C37=\"\",\"\",ROW(36:36))","v":36},null,"الأستاذ الحارس 36","الفلسفة",null,null,"ثانوية الوادي - الوادي",null,null,null,"مركز اجراء امتحان ش البكالوريا","","ثانوية الشهيد بن حمده علي  - النخلة","",""]
[{"$f":"IF(C38=\"\",\"\",ROW(37:37))","v":37},null,"الأستاذ الحارس 37","محاسبة",null,null,"ثانوية الوادي - الوادي",null,null,null,"مركز اجراء امتحان ش البكالوريا","","ثانوية الشهيد بن حمده علي  - النخلة","",""]
[{"$f":"IF(C39=\"\",\"\",ROW(38:38))","v":38},null,"الأستاذ الحارس 38","اقتصاد",null,null,"ثانوية الوادي - الوادي",null,null,null,"مركز اجراء امتحان ش البكالوريا","","ثانوية الشهيد بن حمده علي  - النخلة","",""]
[{"$f":"IF(C40=\"\",\"\",ROW(39:39))","v":39},null,"الأستاذ الحارس 39","كيمياء",null,null,"ثانوية الوادي - الوادي",null,null,null,"مركز اجراء امتحان ش البكالوريا","","ثانوية الشهيد بن حمده علي  - النخلة","",""]
[{"$f":"IF(C41=\"\",\"\",ROW(40:40))","v":40},null,"الأستاذ الحارس 40","اعلام آلي",null,null,"ثانوية الوادي - الوادي",null,null,null,"مركز اجراء امتحان ش البكالوريا","","ثانوية الشهيد بن حمده علي  - النخلة","",""]
[{"$f":"IF(C42=\"\",\"\",ROW(41:41))","v":41},null,"الأستاذ الحارس 41","تربية رياضية",null,null,"ثانوية الوادي - الوادي",null,null,null,"مركز اجراء امتحان ش البكالوريا","","ثانوية الشهيد بن حمده علي  - النخلة","",""]
[{"$f":"IF(C43=\"\",\"\",ROW(42:42))","v":42},null,"الأستاذ الحارس 42","تربية رياضية",null,null,"ثانوية الوادي - الوادي",null,null,null,"مركز اجراء امتحان ش البكالوريا","","ثانوية الشهيد بن حمده علي  - النخلة","",""]
[{"$f":"IF(C44=\"\",\"\",ROW(43:43))","v":43},null,"الأستاذ الحارس 43","مادة الرياضيات",null,null,"ثانوية الوادي - الوادي",null,null,null,"مركز اجراء امتحان ش البكالوريا","","ثانوية الشهيد بن حمده علي  - النخلة","",""]
[{"$f":"IF(C45=\"\",\"\",ROW(44:44))","v":44},null,"الأستاذ الحارس 44","الادب العربي",null,null,"ثانوية الوادي - الوادي",null,null,null,"مركز اجراء امتحان ش البكالوريا","","ثانوية الشهيد بن حمده علي  - النخلة","",""]
[{"$f":"IF(C46=\"\",\"\",ROW(45:45))","v":45},null,"الأستاذ الحارس 45","الادب العربي",null,null,"ثانوية الوادي - الوادي",null,null,null,"مركز اجراء امتحان ش البكالوريا","","ثانوية الشهيد بن حمده علي  - النخلة","",""]
[{"$f":"IF(C47=\"\",\"\",ROW(46:46))","v":46},null,"الأستاذ الحارس 46","اللغة الفرنسية",null,null,"ثانوية الوادي - الوادي",null,null,null,"مركز اجراء امتحان ش البكالوريا","","ثانوية الشهيد بن حمده علي  - النخلة","",""]
[{"$f":"IF(C48=\"\",\"\",ROW(47:47))","v":47},null,"الأستاذ الحارس 47","اللغة الأنجليزية",null,null,"ثانوية الوادي - الوادي",null,null,null,"مركز اجراء امتحان ش البكالوريا","","ثانوية الشهيد بن حمده علي  - النخلة","",""]
[{"$f":"IF(C49=\"\",\"\",ROW(48:48))","v":48},null,"الأستاذ الحارس 48","مادة الرياضيات",null,null,"ثانوية الوادي - الوادي",null,null,null,"مركز اجراء امتحان ش البكالوريا","","ثانوية الشهيد بن حمده علي  - النخلة","",""]
[{"$f":"IF(C50=\"\",\"\",ROW(49:49))","v":49},null,"الأستاذ الحارس 49","الادب العربي",null,null,"ثانوية الوادي - الوادي"]
[{"$f":"IF(C51=\"\",\"\",ROW(50:50))","v":50},null,"الأستاذ الحارس 50","فيزياء",null,null,"ثانوية الوادي - الوادي"]
[{"$f":"IF(C52=\"\",\"\",ROW(51:51))","v":51},null,"الأستاذ الحارس 51","تربية رياضية",null,null,"ثانوية الوادي - الوادي"]
[{"$f":"IF(C53=\"\",\"\",ROW(52:52))","v":52},null,"الأستاذ الحارس 52","كيمياء",null,null,"ثانوية الوادي - الوادي"]
[{"$f":"IF(C54=\"\",\"\",ROW(53:53))","v":""},null,null,null,null,null,"ثانوية الوادي - الوادي"]
[{"$f":"IF(C55=\"\",\"\",ROW(54:54))","v":""}]
[{"$f":"IF(C56=\"\",\"\",ROW(55:55))","v":""}]
[{"$f":"IF(C57=\"\",\"\",ROW(56:56))","v":""}]
[{"$f":"IF(C58=\"\",\"\",ROW(57:57))","v":""}]
[{"$f":"IF(C59=\"\",\"\",ROW(58:58))","v":""}]
[{"$f":"IF(C60=\"\",\"\",ROW(59:59))","v":""}]
[{"$f":"IF(C61=\"\",\"\",ROW(60:60))","v":""}]
[{"$f":"IF(C62=\"\",\"\",ROW(61:61))","v":""}]
[{"$f":"IF(C63=\"\",\"\",ROW(62:62))","v":""}]
[{"$f":"IF(C64=\"\",\"\",ROW(63:63))","v":""}]
[{"$f":"IF(C65=\"\",\"\",ROW(64:64))","v":""}]
[{"$f":"IF(C66=\"\",\"\",ROW(65:65))","v":""}]
[{"$f":"IF(C67=\"\",\"\",ROW(66:66))","v":""}]
[{"$f":"IF(C68=\"\",\"\",ROW(67:67))","v":""}]
[{"$f":"IF(C69=\"\",\"\",ROW(68:68))","v":""}]
[{"$f":"IF(C70=\"\",\"\",ROW(69:69))","v":""}]
[{"$f":"IF(C71=\"\",\"\",ROW(70:70))","v":""}]
[{"$f":"IF(C72=\"\",\"\",ROW(71:71))","v":""}]
[{"$f":"IF(C73=\"\",\"\",ROW(72:72))","v":""}]
[{"$f":"IF(C74=\"\",\"\",ROW(73:73))","v":""}]
[{"$f":"IF(C75=\"\",\"\",ROW(74:74))","v":""}]

{"sheet":"توزيع الحراس ","index":1,"n_rows":57,"n_cols":46,"rows_kept":57,"cut":false,"hidden":false,"merged":[[24,43,24,44],[25,43,25,44],[26,43,26,44],[18,43,18,44],[19,43,19,44],[20,43,20,44],[21,43,21,44],[22,43,22,44],[23,43,23,44],[12,43,12,44],[13,43,13,44],[14,43,14,44],[15,43,15,44],[16,43,16,44],[17,43,17,44],[6,43,6,44],[7,43,7,44],[8,43,8,44],[9,43,9,44],[10,43,10,44],[11,43,11,44],[2,39,2,40],[2,41,2,42],[3,43,3,44],[4,43,4,44],[4,45,5,49],[5,43,5,44],[2,27,2,28],[2,29,2,30],[2,31,2,32],[2,33,2,34],[2,35,2,36],[2,37,2,38],[2,15,2,16],[2,17,2,18],[2,19,2,20],[2,21,2,22],[2,23,2,24],[2,25,2,26],[2,3,2,4],[2,5,2,6],[2,7,2,8],[2,9,2,10],[2,11,2,12],[2,13,2,14],[1,19,1,22],[1,23,1,26],[1,27,1,30],[1,31,1,34],[1,35,1,38],[1,39,1,42],[0,3,0,9],[0,11,0,18],[0,19,0,26],[0,27,0,34],[0,35,0,42],[0,45,1,49],[1,3,1,6],[1,7,1,10],[1,11,1,14],[1,15,1,18]]}
[null,null,"أيام الامتحان             ","اليوم الأول",null,null,null,null,null,null,null,"اليوم الثاني",null,null,null,null,null,null,null,"اليوم الثالث",null,null,null,null,null,null,null,"اليوم الرابع",null,null,null,null,null,null,null,"اليوم الخامس",null,null,null,null,null,null,null,null,null,{"$f":"COUNTIF(D4:AQ27,AT5)","v":8}]
[null,null,"الفترات","صباحا",null,null,null,"مساءً",null,null,null,"صباحا",null,null,null,"مساءً",null,null,null,"صباحا",null,null,null,"مساءً",null,null,null,"صباحا",null,null,null,"مساءً",null,null,null,"صباحا",null,null,null,"مساءً"]
["الرقم"," لقب وإسم الحارس","القاعات","10-8",null,"12-10",null,"15-13",null,"17-15",null,"10-8",null,"12-10",null,"15-13",null,"17-15",null,"10-8",null,"12-10",null,"15-13",null,"17-15",null,"10-8",null,"12-10",null,"15-13",null,"17-15",null,"10-8",null,"12-10",null,"15-13",null,"17-15"]
[1,{"$f":"prof!C2","v":"الأستاذ الحارس 1"},1,1,null,2,null,3,null,4,null,5,null,6,null,7,null,8,null,9,null,10,null,11,null,12,null,13,null,14,null,15,null,16,null,17,null,18,null,null,null,null,null,{"$f":"COUNTA(D4:AQ4)","v":18}]
[2,{"$f":"prof!C3","v":"الأستاذ الحارس 2"},2,null,19,null,20,null,21,null,22,null,23,null,24,null,25,null,26,null,27,null,28,null,29,null,30,null,31,null,32,null,33,null,34,null,35,null,36,null,null,null,null,{"$f":"COUNTA(D5:AQ5)","v":18},null,2]
[3,{"$f":"prof!C4","v":"الأستاذ الحارس 3"},3,37,null,38,null,39,null,40,null,41,null,42,null,43,null,44,null,45,null,46,null,47,null,48,null,49,null,50,null,51,null,52,null,1,null,2,null,null,null,null,null,18]
[4,{"$f":"prof!C5","v":"الأستاذ الحارس 4"},4,null,3,null,4,null,5,null,6,null,7,null,8,null,9,null,10,null,11,null,12,null,13,null,14,null,15,null,16,null,17,null,18,null,19,null,20,null,null,null,null,18]
[5,{"$f":"prof!C6","v":"الأستاذ الحارس 5"},5,21,null,22,null,23,null,24,null,25,null,26,null,27,null,28,null,29,null,30,null,31,null,32,null,33,null,34,null,35,null,36,null,37,null,38,null,null,null,null,null,18]
[6,{"$f":"prof!C7","v":"الأستاذ الحارس 6"},6,null,39,null,40,null,41,null,42,null,43,null,44,null,45,null,46,null,47,null,48,null,49,null,50,null,51,null,52,null,1,null,2,null,3,null,4,null,null,null,null,18]
[7,{"$f":"prof!C8","v":"الأستاذ الحارس 7"},7,5,null,6,null,7,null,8,null,9,null,10,null,11,null,12,null,13,null,14,null,15,null,16,null,17,null,18,null,19,null,20,null,21,null,22,null,null,null,null,null,18]
[8,{"$f":"prof!C9","v":"الأستاذ الحارس 8"},8,null,23,null,24,null,25,null,26,null,27,null,28,null,29,null,30,null,31,null,32,null,33,null,34,null,35,null,36,null,37,null,38,null,39,null,40,null,null,null,null,18]
[9,{"$f":"prof!C10","v":"الأستاذ الحارس 9"},9,41,null,42,null,43,null,44,null,45,null,46,null,47,null,48,null,49,null,50,null,51,null,52,null,1,null,2,null,3,null,4,null,5,null,6,null,null,null,null,null,18]
[10,{"$f":"prof!C11","v":"الأستاذ الحارس 10"},10,null,7,null,8,null,9,null,10,null,11,null,12,null,13,null,14,null,15,null,16,null,17,null,18,null,19,null,20,null,21,null,22,null,23,null,24,null,null,null,null,18]
[11,{"$f":"prof!C12","v":"الأستاذ الحارس 11"},11,25,null,26,null,27,null,28,null,29,null,30,null,31,null,32,null,33,null,34,null,35,null,36,null,37,null,38,null,39,null,40,null,41,null,42,null,null,null,null,null,18]
[12,{"$f":"prof!C13","v":"الأستاذ الحارس 12"},12,null,43,null,44,null,45,null,46,null,47,null,48,null,49,null,50,null,51,null,52,null,1,null,2,null,3,null,4,null,5,null,6,null,7,null,8,null,null,null,null,18]
[13,{"$f":"prof!C14","v":"الأستاذ الحارس 13"},13,9,null,10,null,11,null,12,null,13,null,14,null,15,null,16,null,17,null,18,null,19,null,20,null,21,null,22,null,23,null,24,null,25,null,26,null,null,null,null,null,18]
[14,{"$f":"prof!C15","v":"الأستاذ الحارس 14"},14,null,27,null,28,null,29,null,30,null,31,null,32,null,33,null,34,null,35,null,36,null,37,null,38,null,39,null,40,null,41,null,42,null,43,null,44,null,null,null,null,18]
[15,{"$f":"prof!C16","v":"الأستاذ الحارس 15"},15,45,null,46,null,47,null,48,null,49,null,50,null,51,null,52,null,1,null,2,null,3,null,4,null,5,null,6,null,7,null,8,null,9,null,10,null,null,null,null,null,18]
[16,{"$f":"prof!C17","v":"الأستاذ الحارس 16"},16,null,11,null,12,null,13,null,14,null,15,null,16,null,17,null,18,null,19,null,20,null,21,null,22,null,23,null,24,null,25,null,26,null,27,null,28,null,null,null,null,18]
[17,{"$f":"prof!C18","v":"الأستاذ الحارس 17"},17,28,null,29,null,30,null,31,null,32,null,33,null,34,null,35,null,36,null,37,null,38,null,39,null,40,null,41,null,42,null,43,null,44,null,45,null,null,null,null,null,18]
[18,{"$f":"prof!C19","v":"الأستاذ الحارس 18"},18,null,46,null,47,null,48,null,49,null,50,null,51,null,52,null,1,null,2,null,3,null,4,null,5,null,6,null,7,null,8,null,9,null,10,null,11,null,null,null,null,18]
[19,{"$f":"prof!C20","v":"الأستاذ الحارس 19"},19,12,null,13,null,14,null,15,null,16,null,17,null,18,null,19,null,20,null,21,null,22,null,23,null,24,null,25,null,26,null,27,null,28,null,29,null,null,null,null,null,18]
[20,{"$f":"prof!C21","v":"الأستاذ الحارس 20"},20,null,30,null,31,null,32,null,33,null,34,null,35,null,36,null,37,null,38,null,39,null,40,null,41,null,42,null,43,null,44,null,45,null,46,null,47,null,null,null,null,18]
[21,{"$f":"prof!C22","v":"الأستاذ الحارس 21"},21,48,null,49,null,50,null,51,null,52,null,1,null,2,null,3,null,4,null,5,null,6,null,7,null,8,null,9,null,10,null,11,null,12,null,13,null,null,null,null,null,18]
[22,{"$f":"prof!C23","v":"الأستاذ الحارس 22"},22,null,13,null,14,null,15,null,16,null,17,null,18,null,19,null,20,null,21,null,22,null,23,null,24,null,25,null,26,null,27,null,28,null,29,null,30,null,null,null,null,18]
[23,{"$f":"prof!C24","v":"الأستاذ الحارس 23"},23,31,null,32,null,33,null,34,null,35,null,36,null,37,null,38,null,39,null,40,null,41,null,42,null,43,null,44,null,45,null,46,null,47,null,48,null,null,null,null,null,18]
[24,{"$f":"prof!C25","v":"الأستاذ الحارس 24"},null,null,null,null,null,null,null,null,null,null,null,null,null,null,null,null,null,null,null,null,null,null,null,null,null,null,null,null,null,null,null,null,null,null,null,null,null,null,null,null,null,0,null,{"$f":"COUNTIF(F$4:G$27,L4)=1","v":false}]
[25,{"$f":"prof!C26","v":"الأستاذ الحارس 25"}]
[26,{"$f":"prof!C27","v":"الأستاذ الحارس 26"}]
[27,{"$f":"prof!C28","v":"الأستاذ الحارس 27"}]
[28,{"$f":"prof!C29","v":"الأستاذ الحارس 28"}]
[29,{"$f":"prof!C30","v":"الأستاذ الحارس 29"}]
[30,{"$f":"prof!C31","v":"الأستاذ الحارس 30"}]
[31,{"$f":"prof!C32","v":"الأستاذ الحارس 31"}]
[32,{"$f":"prof!C33","v":"الأستاذ الحارس 32"}]
[33,{"$f":"prof!C34","v":"الأستاذ الحارس 33"}]
[34,{"$f":"prof!C35","v":"الأستاذ الحارس 34"}]
[35,{"$f":"prof!C36","v":"الأستاذ الحارس 35"}]
[36,{"$f":"prof!C37","v":"الأستاذ الحارس 36"}]
[37,{"$f":"prof!C38","v":"الأستاذ الحارس 37"}]
[38,{"$f":"prof!C39","v":"الأستاذ الحارس 38"}]
[39,{"$f":"prof!C40","v":"الأستاذ الحارس 39"}]
[40,{"$f":"prof!C41","v":"الأستاذ الحارس 40"}]
[41,{"$f":"prof!C42","v":"الأستاذ الحارس 41"}]
[42,{"$f":"prof!C43","v":"الأستاذ الحارس 42"}]
[43,{"$f":"prof!C44","v":"الأستاذ الحارس 43"}]
[44,{"$f":"prof!C45","v":"الأستاذ الحارس 44"}]
[45,{"$f":"prof!C46","v":"الأستاذ الحارس 45"}]
[46,{"$f":"prof!C47","v":"الأستاذ الحارس 46"}]
[47,{"$f":"prof!C48","v":"الأستاذ الحارس 47"}]
[48,{"$f":"prof!C49","v":"الأستاذ الحارس 48"}]
[49,{"$f":"prof!C50","v":"الأستاذ الحارس 49"}]
[50,{"$f":"prof!C51","v":"الأستاذ الحارس 50"}]
[51,{"$f":"prof!C52","v":"الأستاذ الحارس 51"}]
[52,{"$f":"prof!C53","v":"الأستاذ الحارس 52"}]
["",{"$f":"prof!C54","v":"00:00:00"}]
[null,{"$f":"prof!C55","v":"00:00:00"}]